bitfinex/quotes_ETHUSD_20251212
["timestamp","ask_amount","ask_price","bid_price","bid_amount"]
[1765551690813,0.98597929,3225.8,3224.7,0.497]
[1765551691122,0.405504,3225.6,3224.5,0.476]
[1765551691340,0.405504,3225.6,3224.6,0.497]
[1765551691505,0.405504,3225.4,3224.5,0.002]
[1765551691706,0.405504,3225.4,3224.6,0.497]
[1765551691958,1.069404,3224.6,3224.5,0.002]
[1765551692406,10.29756434,3224.6,3224.5,0.002]
[1765551692599,13.39872417,3224.6,3224.5,0.002]
[1765551693067,0.405504,3223.7,3222.6,0.647]
[1765551693277,0.405504,3223.7,3223.1,0.1833]
[1765551693485,0.405504,3224.0,3223.1,0.6573]
[1765551693783,0.887704,3224.0,3222.6,0.624]
[1765551693939,0.880204,3223.5,3223.1,0.497]
[1765551694138,0.880204,3223.5,3222.6,0.624]
[1765551694443,0.880204,3223.5,3223.0,0.499]
[1765551694647,4.56289737,3223.5,3223.0,0.499]
[1765551694842,4.94579288,3223.5,3223.0,0.002]
[1765551695048,5.42799288,3223.5,3223.0,0.002]
[1765551696239,4.47109288,3223.5,3223.1,0.1833]
[1765551696453,5.04509737,3223.5,3223.0,0.002]
[1765551696640,5.04509737,3223.5,3223.0,0.499]
[1765551697063,5.04509737,3223.5,3223.0,0.002]
[1765551698074,5.09509737,3223.5,3223.0,0.002]
[1765551698579,4.61289737,3223.5,3223.0,0.002]
[1765551698742,4.08819737,3223.5,3223.0,0.002]
[1765551698953,5.76412778,3223.5,3223.0,0.002]
[1765551699287,3.68269337,3223.5,3223.4,0.4847]
[1765551699478,3.68269337,3223.5,3223.4,0.002]
[1765551699785,4.08819737,3223.5,3223.4,0.002]
[1765551700283,6.20270436,3224.4,3223.4,0.9587]
[1765551700583,3.10077519,3225.0,3224.4,0.6317]
[1765551700757,6.52003437,3225.0,3224.5,0.4827]
[1765551700951,0.58047529,3224.9,3224.5,0.4827]
[1765551701151,6.52003437,3225.0,3224.5,0.9567]
[1765551701384,0.58047529,3224.9,3224.5,0.4827]
[1765551701687,6.52003437,3225.0,3224.4,0.646]
[1765551701862,3.10077519,3225.0,3224.4,0.646]
[1765551702058,6.20155038,3225.0,3224.4,0.646]
[1765551702259,0.58047529,3224.9,3224.4,0.646]
[1765551702481,6.20155038,3225.0,3224.4,0.646]
[1765551702680,0.76967529,3224.9,3224.2,0.149]
[1765551702862,0.405504,3224.6,3224.3,0.497]
[1765551703059,0.405504,3224.6,3223.7,0.474]
[1765551703263,0.405504,3224.4,3223.8,0.497]
[1765551703673,0.405504,3224.6,3223.8,0.497]
[1765551704077,0.405504,3224.6,3223.9,0.474]
[1765551704285,0.405504,3224.6,3223.9,0.971]
[1765551704286,1.19882969,3224.6,3223.9,0.971]
[1765551704588,1.19882969,3224.6,3224.0,0.497]
[1765551704796,0.405504,3224.4,3223.9,0.474]
[1765551704960,0.405504,3224.4,3224.1,0.497]
[1765551705358,3.10103144,3224.8,3224.3,0.4827]
[1765551705563,6.20097354,3225.3,3224.7,0.4827]
[1765551705973,0.58047529,3225.2,3224.7,0.4827]
[1765551706487,0.58047529,3225.2,3224.8,0.971]
[1765551706695,0.58047529,3225.2,3224.8,0.497]
[1765551706881,0.58047529,3225.0,3224.8,0.497]
[1765551707069,0.98597929,3225.0,3224.9,0.497]
[1765551707275,1.70471303,3225.0,3224.9,0.497]
[1765551707991,6.2002046,3225.7,3224.9,1.4537]
[1765551708196,0.58047529,3225.6,3225.0,0.4827]
[1765551708398,1.04997529,3225.6,3224.6,0.1853]
[1765551708694,0.405504,3225.5,3224.7,0.497]
[1765551708864,0.405504,3225.3,3224.7,0.497]
[1765551709204,9.29800092,3226.5,3225.4,0.4554]
[1765551709496,1.49625009,3226.4,3225.5,0.497]
[1765551709705,1.44625009,3226.4,3225.5,0.497]
[1765551709862,6.19866728,3226.5,3225.6,0.4856]
[1765551710067,0.4695,3226.8,3225.6,0.4856]
[1765551710068,3.09904549,3226.8,3225.6,0.4856]
[1765551710270,3.09885342,3227.0,3225.6,0.4856]
[1765551710691,6.50759218,3227.0,3225.6,0.4856]
[1765551710889,0.58047529,3226.9,3225.7,6.2002046]
[1765551711304,0.58047529,3226.9,3225.8,0.4856]
[1765551711529,3.09882692,3227.1,3226.8,0.6054]
[1765551711805,3.09882692,3227.1,3226.9,0.9524]
[1765551711806,0.58047529,3227.0,3226.9,0.9524]
[1765551712202,3.09818136,3227.7,3226.9,1.438]
[1765551712414,0.4695,3227.6,3227.0,0.497]
[1765551712611,1.04997529,3227.6,3227.1,0.497]
[1765551712812,0.405504,3226.9,3226.5,0.15]
[1765551713109,0.98597929,3226.9,3226.6,0.497]
[1765551715012,0.58047529,3226.7,3226.6,0.497]
[1765551715316,0.405504,3226.6,3226.1,0.4856]
[1765551715516,3.09837335,3227.5,3226.8,0.4554]
[1765551715699,6.19654924,3227.7,3227.1,0.4554]
[1765551716014,3.0979894,3227.9,3227.1,0.4554]
[1765551716314,3.0975096,3228.4,3227.8,0.4554]
[1765551716518,3.0975096,3228.4,3227.6,0.1833]
[1765551716519,3.09722678,3228.7,3228.3,0.1671]
[1765551716882,0.405504,3228.5,3227.7,0.4856]
[1765551717219,0.405504,3228.3,3227.8,0.497]
[1765551717785,0.001,3228.2,3227.8,0.497]
[1765551718386,0.001,3228.2,3227.6,0.6689]
[1765551718605,0.001,3228.2,3227.7,0.497]
[1765551718981,3.0987015,3228.2,3227.7,0.497]
[1765551719183,0.405504,3228.1,3227.8,0.4856]
[1765551719424,0.001,3228.2,3228.1,0.1671]
[1765551720084,0.001,3228.2,3228.1,0.6527]
[1765551720281,0.406504,3228.2,3228.1,0.497]
[1765551720714,0.001,3228.2,3228.1,0.6527]
[1765551720886,0.001,3228.2,3228.1,0.6641]
[1765551721099,0.001,3228.6,3228.1,7.34529492]
[1765551721400,0.001,3228.6,3228.2,1.22012949]
[1765551721609,0.001,3228.6,3228.1,0.1671]
[1765551721811,0.001,3228.6,3228.2,0.497]
[1765551722208,0.001,3228.6,3227.6,0.1833]
[1765551722400,0.4705,3228.6,3227.7,0.497]
[1765551722598,0.001,3228.6,3227.6,3.76708951]
[1765551722797,0.406504,3228.6,3227.7,0.87370895]
[1765551722997,0.406504,3228.6,3227.7,3.59516731]
[1765551723204,3.67879301,3228.6,3228.5,0.6215]
[1765551723400,3.67879301,3228.6,3228.5,0.497]
[1765551723627,4.08429701,3228.6,3228.5,0.497]
[1765551723805,0.98597929,3228.5,3227.6,0.1833]
[1765551724004,0.98597929,3228.5,3227.7,0.497]
[1765551724202,0.98597929,3228.5,3227.8,0.497]
[1765551724405,0.001,3228.6,3228.4,0.6215]
[1765551724732,3.09832704,3228.6,3228.5,0.497]
[1765551725237,4.08348889,3228.4,3228.3,0.497]
[1765551725400,0.98597929,3228.4,3228.3,0.9826]
[1765551725591,0.98597929,3228.4,3228.3,0.9524]
[1765551725928,0.98597929,3228.4,3228.3,0.497]
[1765551726105,0.98597929,3228.4,3227.8,0.4856]
[1765551726106,0.58047529,3228.3,3227.8,0.4856]
[1765551726296,0.405504,3227.8,3227.2,0.1833]
[1765551726497,0.405504,3227.8,3227.3,0.497]
[1765551726700,0.405504,3228.0,3227.3,0.497]
[1765551727320,6.18668181,3227.9,3227.4,0.497]
[1765551727809,6.18668181,3227.9,3227.2,0.1833]
[1765551727810,0.58047529,3227.8,3227.2,0.1833]
[1765551728001,0.58047529,3227.8,3226.9,0.4856]
[1765551728002,1.04997529,3227.8,3227.3,0.497]
[1765551728245,1.04997529,3227.8,3226.3,0.6527]
[1765551728541,0.4695,3227.7,3226.4,0.497]
[1765551728755,0.4695,3227.7,3226.5,0.497]
[1765551729424,0.98597929,3227.4,3226.5,0.497]
[1765551730112,0.58047529,3227.4,3227.3,0.1833]
[1765551730436,0.58047529,3227.9,3227.3,1.1357]
[1765551730736,0.58047529,3227.9,3227.4,0.9524]
[1765551731049,0.405504,3227.8,3227.4,0.4554]
[1765551731337,0.405504,3227.6,3227.1,0.1833]
[1765551731541,0.405504,3227.6,3227.5,0.497]
[1765551731752,0.405504,3227.6,3227.5,1.438]
[1765551732035,6.1948273,3228.5,3227.5,1.438]
[1765551732236,6.1948273,3228.5,3227.6,0.4856]
[1765551732403,0.58047529,3228.4,3227.6,0.4856]
[1765551732802,3.09741365,3228.5,3227.7,0.40809717]
[1765551733007,3.09741365,3228.5,3227.8,0.497]
[1765551733221,3.09760555,3228.3,3227.8,0.497]
[1765551733507,0.001,3228.6,3227.8,0.9826]
[1765551733824,0.001,3228.6,3228.5,0.1661]
[1765551734034,0.001,3228.6,3228.5,0.6631]
[1765551734533,3.09831772,3228.6,3228.2,0.1661]
[1765551734731,3.09831772,3228.6,3227.1,0.1833]
[1765551734732,0.405504,3228.5,3227.4,0.4856]
[1765551734931,0.405504,3228.5,3227.5,0.497]
[1765551735134,0.98597929,3228.5,3227.6,0.40809941]
[1765551735448,0.98597929,3228.5,3227.1,0.1833]
[1765551735449,0.98597929,3228.3,3227.1,0.1833]
[1765551735628,0.405504,3227.5,3227.2,0.497]
[1765551736421,0.6588,3228.0,3227.2,0.497]
[1765551736627,0.405504,3227.9,3227.2,0.497]
[1765551737250,0.98597929,3227.7,3227.2,0.497]
[1765551738220,0.98597929,3227.7,3227.1,0.1833]
[1765551738221,2.01400283,3227.7,3227.3,0.497]
[1765551738429,0.98597929,3227.7,3227.3,0.497]
[1765551738625,0.405504,3227.5,3227.4,0.497]
[1765551738829,0.405504,3227.5,3226.3,0.1671]
[1765551739135,0.405504,3227.4,3226.4,0.497]
[1765551739451,0.405504,3227.2,3226.4,0.497]
[1765551739918,0.405504,3227.2,3226.4,4.0834112]
[1765551740115,0.405504,3227.2,3226.5,0.42505112]
[1765551740325,0.405504,3227.2,3226.5,0.91205112]
[1765551740948,0.405504,3227.2,3227.1,0.1833]
[1765551741136,0.405504,3227.2,3227.1,0.6803]
[1765551741326,0.58047529,3227.7,3227.1,0.6803]
[1765551741527,1.7041892,3227.7,3226.5,0.42505112]
[1765551741852,0.405504,3227.5,3226.6,0.497]
[1765551742345,0.405504,3226.6,3225.6,0.489]
[1765551742546,0.405504,3226.6,3226.1,0.497]
[1765551742760,0.861104,3226.6,3226.0,0.002]
[1765551743057,0.886404,3226.1,3226.0,0.002]
[1765551743254,3.98612192,3226.1,3226.0,0.002]
[1765551743562,4.56659721,3226.1,3226.0,0.002]
[1765551743766,5.02219721,3226.1,3226.0,0.002]
[1765551744176,5.83437788,3226.1,3226.0,0.002]
[1765551746225,4.56659721,3226.1,3226.0,0.002]
[1765551746425,5.02219721,3226.1,3226.0,0.002]
[1765551747649,4.08569721,3226.1,3226.0,0.002]
[1765551747825,4.56659721,3226.1,3226.0,0.002]
[1765551748155,5.02219721,3226.1,3226.0,0.002]
[1765551748456,5.83437788,3226.1,3226.0,0.002]
[1765551748663,4.56659721,3226.1,3226.0,0.002]
[1765551748866,3.68019321,3226.1,3226.0,0.002]
[1765551749273,4.08569721,3226.1,3226.0,0.002]
[1765551749740,5.02219721,3226.1,3226.0,0.002]
[1765551749937,4.56659721,3226.1,3226.0,0.002]
[1765551750140,5.02219721,3226.1,3226.0,0.002]
[1765551750472,5.83437788,3226.1,3226.0,0.002]
[1765551750769,4.08569721,3226.1,3226.0,0.002]
[1765551751490,12.82485713,3226.1,3226.0,0.002]
[1765551751702,15.89143013,3226.1,3226.0,0.002]
[1765551751843,16.19788713,3226.1,3226.0,0.002]
[1765551752454,15.02487313,3226.1,3226.0,0.002]
[1765551752653,17.7188714,3226.1,3226.0,0.002]
[1765551753574,14.6373054,3226.1,3226.0,0.002]
[1765551753782,21.1501824,3226.1,3226.0,0.002]
[1765551754472,0.98597929,3225.4,3223.8,0.1671]
[1765551754769,0.98597929,3225.4,3224.1,0.984]
[1765551754770,0.405504,3225.4,3224.1,0.984]
[1765551755188,0.405504,3225.2,3224.2,0.487]
[1765551755547,0.405504,3224.9,3224.2,0.487]
[1765551755975,0.405504,3224.9,3224.8,0.475]
[1765551756276,0.08406469,3225.9,3224.8,0.475]
[1765551756277,9.29981351,3225.9,3224.8,0.475]
[1765551756444,9.29981351,3225.9,3224.9,0.475]
[1765551756445,0.97554135,3225.8,3224.9,0.475]
[1765551756644,6.1998202,3225.9,3225.0,0.497]
[1765551757067,6.1998202,3225.9,3225.1,1.1501]
[1765551757241,9.29981351,3225.9,3224.3,0.487]
[1765551757443,0.405504,3225.4,3224.5,3.101256]
[1765551757993,0.405504,3225.4,3224.6,0.487]
[1765551758277,0.405504,3225.4,3225.3,0.1661]
[1765551758471,0.405504,3225.4,3225.3,0.497]
[1765551759255,0.405504,3225.4,3225.3,0.972]
[1765551759656,0.58047529,3225.4,3225.3,0.972]
[1765551759859,0.405504,3225.3,3224.0,0.1833]
[1765551760080,0.405504,3225.1,3224.1,0.984]
[1765551760502,0.405504,3225.1,3224.2,0.487]
[1765551760716,0.861104,3225.1,3224.1,0.497]
[1765551761016,0.405504,3225.1,3224.2,0.497]
[1765551761205,0.405504,3225.1,3224.3,0.497]
[1765551761602,0.405504,3224.8,3224.1,0.487]
[1765551761995,0.405504,3224.8,3224.2,0.497]
[1765551762196,0.405504,3224.8,3224.7,0.475]
[1765551762412,0.03406469,3225.9,3224.7,0.475]
[1765551762616,6.2000124,3225.8,3224.8,0.475]
[1765551762821,3.1000062,3225.8,3224.9,0.487]
[1765551763022,6.2000124,3225.8,3225.0,0.497]
[1765551763233,6.2000124,3225.8,3224.3,6.20289674]
[1765551763234,3.1000062,3225.8,3225.7,0.475]
[1765551763529,6.1988594,3226.4,3225.7,0.972]
[1765551763723,0.58047529,3226.5,3225.7,0.475]
[1765551763912,0.58047529,3226.5,3225.8,0.497]
[1765551763913,0.61988594,3226.4,3225.8,0.497]
[1765551764090,0.58047529,3226.5,3225.8,0.497]
[1765551764691,0.405504,3226.4,3225.8,0.497]
[1765551765711,0.58047529,3226.5,3225.8,0.497]
[1765551765712,0.405504,3226.2,3225.8,0.497]
[1765551765992,9.29684835,3226.9,3225.8,0.984]
[1765551766194,0.58047529,3226.8,3226.2,0.475]
[1765551766621,7.1494102,3226.9,3226.2,0.475]
[1765551766622,6.1978989,3226.9,3226.3,0.15]
[1765551766993,0.58047529,3226.8,3226.3,0.637]
[1765551767213,3.09894945,3226.9,3226.3,0.637]
[1765551767420,9.2939682,3227.9,3226.8,0.475]
[1765551767621,9.29454408,3227.7,3227.0,0.475]
[1765551767917,9.29454408,3227.7,3227.1,0.497]
[1765551768113,0.405504,3227.5,3227.1,0.497]
[1765551768345,3.09818136,3227.7,3227.2,0.1752]
[1765551768530,3.09792714,3228.0,3227.4,0.4503]
[1765551768742,6.1952111,3228.3,3227.9,0.4503]
[1765551768949,0.58047529,3228.2,3228.0,0.497]
[1765551769120,0.405504,3228.1,3227.3,0.4563]
[1765551769317,3.09752327,3228.4,3227.4,0.497]
[1765551769571,6.19504654,3228.4,3227.4,0.497]
[1765551769752,3.09840517,3228.6,3228.3,0.4503]
[1765551769923,0.58047529,3228.5,3228.4,0.497]
[1765551770236,0.001,3228.6,3228.5,0.4503]
[1765551770420,0.001,3228.6,3228.5,0.9066]
[1765551770630,0.001,3228.6,3228.5,1.4036]
[1765551771745,0.001,3228.6,3228.5,4.50101365]
[1765551771962,0.001,3228.6,3228.5,5.26086789]
[1765551772141,0.001,3228.6,3228.5,5.84134318]
[1765551772648,0.001,3228.6,3228.5,10.45754318]
[1765551772853,0.001,3228.6,3228.5,8.97740018]
[1765551773151,0.001,3228.6,3228.5,11.68765318]
[1765551773358,0.001,3228.6,3228.5,13.24853818]
[1765551773522,0.001,3228.6,3228.5,9.97874718]
[1765551773722,0.001,3228.6,3228.5,8.97874718]
[1765551773924,0.001,3228.6,3228.5,9.47574718]
[1765551774134,0.001,3228.6,3228.5,5.08148894]
[1765551774618,0.001,3228.6,3228.5,0.9066]
[1765551775125,0.001,3228.6,3228.5,0.497]
[1765551775325,0.001,3228.6,3228.5,0.9473]
[1765551775622,0.001,3228.6,3228.5,1.4036]
[1765551776024,0.001,3228.6,3228.0,0.4563]
[1765551776219,0.001,3228.6,3228.1,0.497]
[1765551776549,0.001,3228.6,3228.0,0.4563]
[1765551776853,0.001,3228.6,3228.1,0.497]
[1765551777030,0.001,3228.6,3228.5,0.4503]
[1765551777230,0.001,3228.6,3228.2,0.4563]
[1765551777442,0.001,3228.6,3228.5,0.497]
[1765551777824,0.001,3228.6,3227.2,0.1752]
[1765551778028,0.405504,3228.5,3227.3,0.9533]
[1765551778340,0.405504,3228.5,3227.4,0.497]
[1765551778523,0.405504,3228.4,3227.2,0.1752]
[1765551778724,0.405504,3228.4,3227.3,0.497]
[1765551779061,0.405504,3228.4,3227.3,0.9533]
[1765551779353,0.405504,3228.4,3226.4,10.91366569]
[1765551779354,0.6829,3227.4,3226.2,0.4563]
[1765551779651,0.405504,3227.3,3226.4,0.497]
[1765551779955,3.09866137,3227.2,3226.4,0.497]
[1765551780132,3.09866137,3227.2,3226.4,0.9533]
[1765551780465,3.09866137,3227.2,3226.3,0.15]
[1765551780466,0.405504,3227.1,3226.3,0.15]
[1765551780622,0.405504,3227.1,3226.0,0.1752]
[1765551780623,0.405504,3226.9,3226.0,0.1752]
[1765551780822,0.405504,3226.9,3225.2,0.03406469]
[1765551780823,0.405504,3226.9,3225.2,0.4563]
[1765551781162,0.405504,3226.7,3225.6,3.10014962]
[1765551781338,0.405504,3226.9,3225.7,0.31001496]
[1765551781535,0.405504,3227.0,3226.0,3.09980768]
[1765551781740,0.405504,3227.0,3226.2,3.09957747]
[1765551782046,0.405504,3226.9,3226.3,0.1752]
[1765551782236,0.405504,3227.0,3226.3,0.86233993]
[1765551782422,0.405504,3227.0,3226.0,0.1752]
[1765551782627,0.405504,3227.0,3226.1,3.59671792]
[1765551782827,0.405504,3227.0,3226.1,6.69643584]
[1765551783035,0.405504,3227.0,3226.2,0.4688]
[1765551783852,0.405504,3226.7,3225.1,0.1661]
[1765551784056,0.405504,3226.7,3225.3,3.10041308]
[1765551784263,0.405504,3226.5,3225.4,3.10036696]
[1765551784461,0.405504,3226.5,3225.4,0.497]
[1765551784666,0.405504,3226.4,3225.4,0.497]
[1765551784873,8.36070801,3226.8,3225.5,0.4688]
[1765551784874,0.405504,3226.7,3225.5,0.4688]
[1765551785077,0.405504,3226.7,3225.8,3.0999774]
[1765551785234,0.405504,3226.7,3225.9,0.30999774]
[1765551785434,0.405504,3226.7,3225.6,3.56897469]
[1765551785663,0.405504,3226.7,3225.6,0.4688]
[1765551785862,0.98597929,3226.5,3225.8,3.09997571]
[1765551786035,3.09856536,3227.3,3225.8,6.19998191]
[1765551786356,0.58047529,3227.2,3225.9,0.644]
[1765551786536,0.405504,3227.1,3226.0,1.18139819]
[1765551786738,0.405504,3227.1,3226.1,0.497]
[1765551786937,0.405504,3227.1,3226.2,0.497]
[1765551787158,0.405504,3227.1,3226.1,0.4688]
[1765551787358,0.900104,3227.1,3226.2,0.497]
[1765551787673,0.1901,3227.9,3226.3,0.03099525]
[1765551787846,3.09808538,3227.8,3226.3,0.4688]
[1765551788166,6.19624742,3227.8,3226.4,6.1988594]
[1765551788366,0.58047529,3227.7,3226.5,0.97671825]
[1765551788535,6.19624742,3227.8,3226.5,1.44551825]
[1765551788735,0.98597929,3227.7,3226.6,0.4688]
[1765551789276,0.405504,3227.7,3226.5,0.97671825]
[1765551789574,0.4946,3227.6,3226.6,0.497]
[1765551789737,0.405504,3227.5,3226.1,0.4688]
[1765551789934,0.405504,3227.3,3225.1,0.6349]
[1765551790138,0.98597929,3227.0,3225.1,0.6349]
[1765551790360,0.98597929,3227.0,3225.2,0.497]
[1765551790575,0.405504,3226.8,3225.1,0.6349]
[1765551790791,0.405504,3226.8,3225.2,0.497]
[1765551790939,0.405504,3226.4,3224.7,0.15]
[1765551791247,0.98597929,3225.8,3224.1,0.15]
[1765551791452,0.405504,3225.6,3224.4,0.497]
[1765551791974,0.98597929,3225.2,3224.4,0.497]
[1765551792483,0.98597929,3225.2,3223.9,3.5716181]
[1765551792484,0.405504,3225.0,3224.5,0.497]
[1765551792780,0.4946,3225.1,3224.5,0.497]
[1765551792781,0.405504,3225.1,3224.5,0.497]
[1765551793088,0.405504,3225.1,3224.5,0.9658]
[1765551793250,0.405504,3224.9,3224.6,0.497]
[1765551793569,0.405504,3224.7,3224.6,0.497]
[1765551793900,0.98597929,3225.3,3224.6,0.497]
[1765551794043,0.58047529,3225.5,3224.6,0.85683416]
[1765551794649,0.405504,3225.4,3224.6,4.42677737]
[1765551794876,0.405504,3225.4,3224.6,7.5279372]
[1765551795188,3.5945944,3225.9,3224.7,0.4688]
[1765551795370,0.58047529,3226.0,3224.8,0.75279372]
[1765551795567,3.09971792,3226.1,3224.8,0.75279372]
[1765551795878,3.28976771,3226.2,3224.9,0.4688]
[1765551796082,0.58047529,3226.1,3225.0,6.20155038]
[1765551796286,0.91068589,3226.9,3225.1,0.66703504]
[1765551796287,9.29713647,3226.8,3225.1,0.66703504]
[1765551796451,0.58047529,3226.7,3225.1,0.83313504]
[1765551796775,0.4946,3226.6,3225.1,1.30193504]
[1765551796981,0.405504,3226.5,3225.1,1.30193504]
[1765551797180,0.405504,3226.5,3225.2,0.497]
[1765551797346,0.405504,3226.3,3225.3,0.497]
[1765551797546,0.405504,3226.3,3225.4,0.497]
[1765551797747,0.595604,3225.5,3225.4,0.497]
[1765551798290,0.405504,3225.5,3225.4,0.497]
[1765551798498,0.98597929,3225.9,3225.4,0.497]
[1765551798710,1.17597929,3225.9,3225.4,0.497]
[1765551798997,0.405504,3225.9,3225.4,0.497]
[1765551799156,0.58047529,3226.1,3225.4,3.95710454]
[1765551799490,3.09904549,3226.8,3225.5,0.4771]
[1765551799856,6.19809098,3226.8,3225.5,0.4771]
[1765551800084,6.19847516,3226.6,3225.5,3.57729967]
[1765551800287,0.58047529,3226.5,3225.6,0.75344042]
[1765551800687,0.405504,3226.4,3225.6,0.75344042]
[1765551801096,0.405504,3226.4,3225.7,0.497]
[1765551801456,0.405504,3226.4,3224.5,0.4771]
[1765551801457,0.405504,3225.7,3224.5,0.4771]
[1765551801658,0.405504,3225.7,3224.6,0.497]
[1765551801966,0.405504,3225.7,3224.9,3.10084348]
[1765551802157,0.98597929,3225.5,3224.9,0.62018235]
[1765551802353,0.405504,3225.5,3224.7,3.10106366]
[1765551802587,0.405504,3226.4,3225.4,0.1661]
[1765551802790,0.98597929,3226.4,3225.5,0.497]
[1765551803284,1.44847929,3226.4,3225.5,0.497]
[1765551804374,0.405504,3226.2,3225.6,3.10019841]
[1765551804564,0.4625,3226.6,3225.7,0.66974438]
[1765551804764,0.405504,3226.5,3225.8,0.497]
[1765551805167,0.868004,3226.5,3225.8,0.497]
[1765551805579,0.405504,3226.3,3225.8,0.497]
[1765551806001,0.405504,3226.2,3225.8,0.497]
[1765551806198,0.58047529,3226.8,3225.8,0.973]
[1765551806396,0.58047529,3226.6,3226.2,0.1752]
[1765551806783,0.405504,3226.4,3226.3,0.497]
[1765551807403,0.405504,3226.3,3224.9,1.05647529]
[1765551807594,0.405504,3226.3,3225.7,3.10001241]
[1765551807790,0.405504,3226.5,3225.2,0.973]
[1765551807993,0.405504,3226.5,3226.0,3.099797]
[1765551808300,0.4625,3227.4,3226.2,3.09961921]
[1765551808503,0.4625,3227.4,3226.1,3.77186258]
[1765551808707,3.09902795,3226.9,3226.1,0.6722]
[1765551808872,0.4625,3227.4,3226.1,3.77191792]
[1765551809071,0.4625,3227.5,3226.2,0.476]
[1765551809280,0.405504,3227.4,3226.3,0.497]
[1765551809503,0.4625,3227.5,3226.3,0.87419179]
[1765551809682,0.4625,3227.5,3226.3,1.35019179]
[1765551809874,0.4625,3227.5,3226.3,0.87419179]
[1765551810077,0.405504,3227.4,3226.3,0.87419179]
[1765551810603,0.98597929,3227.2,3226.4,0.497]
[1765551810901,3.09808538,3227.8,3226.4,1.37038039]
[1765551811104,6.19617076,3227.8,3226.4,1.37038039]
[1765551811305,6.19617076,3227.8,3226.5,0.476]
[1765551811603,3.09789952,3228.0,3226.5,0.476]
[1765551811773,6.19585234,3228.0,3226.5,0.476]
[1765551811974,6.19585234,3228.0,3226.6,1.41206131]
[1765551811975,0.76647529,3227.9,3226.6,1.41206131]
[1765551812172,0.405504,3227.8,3226.6,0.497]
[1765551812406,0.868004,3227.8,3226.4,0.39738039]
[1765551812622,0.405504,3227.6,3226.7,0.497]
[1765551812975,3.67836872,3228.0,3227.5,0.1752]
[1765551813180,3.67836872,3228.0,3227.6,0.497]
[1765551813181,6.77626215,3228.0,3227.6,0.497]
[1765551813492,0.405504,3227.8,3227.6,0.497]
[1765551813817,0.405504,3227.8,3226.6,0.1752]
[1765551814115,1.01633687,3227.9,3226.0,3.09978749]
[1765551814116,0.186,3226.6,3226.0,3.09978749]
[1765551814333,0.405504,3226.5,3225.2,3.10056236]
[1765551814482,0.405504,3226.5,3225.3,0.82366624]
[1765551814483,0.98597929,3226.3,3225.3,0.82366624]
[1765551814684,0.98597929,3226.3,3225.3,0.32666624]
[1765551814911,1.44847929,3226.3,3225.4,0.497]
[1765551815294,0.98597929,3226.3,3225.4,0.497]
[1765551815491,0.98597929,3226.4,3225.4,1.41301512]
[1765551815911,0.98597929,3226.4,3225.4,0.93701512]
[1765551816111,1.44847929,3226.4,3225.4,0.497]
[1765551816486,4.08548446,3226.4,3225.5,3.10029452]
[1765551816683,0.405504,3226.2,3225.4,3.10038033]
[1765551816889,0.405504,3226.2,3225.6,0.497]
[1765551817184,0.405504,3226.5,3225.6,0.85673803]
[1765551817425,0.98597929,3226.5,3225.6,0.85673803]
[1765551817722,0.405504,3226.6,3225.7,0.476]
[1765551818022,0.98597929,3226.6,3225.7,0.476]
[1765551818196,0.186,3226.9,3225.8,0.03100006]
[1765551818396,0.4625,3227.4,3225.7,0.476]
[1765551818605,3.09856536,3227.3,3225.8,0.497]
[1765551818798,0.405504,3227.1,3225.3,0.476]
[1765551819000,0.405504,3227.1,3225.6,3.10018023]
[1765551819205,0.405504,3226.9,3225.6,6.20037864]
[1765551819386,0.405504,3226.9,3225.6,3.10018023]
[1765551819587,0.405504,3226.7,3225.6,6.20037864]
[1765551819823,0.405504,3226.7,3225.7,0.62003786]
[1765551820017,0.868004,3226.7,3225.7,0.62003786]
[1765551820414,0.405504,3226.7,3225.7,0.62003786]
[1765551820634,0.405504,3226.9,3225.9,6.1998202]
[1765551820845,0.405504,3226.9,3226.0,0.497]
[1765551820846,0.58047529,3226.9,3226.0,0.497]
[1765551821021,0.98597929,3227.0,3226.1,0.66968202]
[1765551821224,0.6485,3226.9,3225.1,0.1661]
[1765551821456,0.405504,3226.8,3225.1,0.1661]
[1765551821609,0.405504,3226.6,3225.2,0.497]
[1765551821813,0.405504,3226.6,3225.1,0.1661]
[1765551822113,0.236,3226.9,3224.8,0.1752]
[1765551822114,0.405504,3226.4,3225.3,0.497]
[1765551822526,9.29915376,3226.1,3225.4,0.497]
[1765551822721,0.98597929,3226.0,3225.4,0.497]
[1765551823140,0.405504,3225.8,3225.1,0.1661]
[1765551823412,0.405504,3225.8,3224.8,0.1752]
[1765551823627,0.868004,3225.8,3224.5,0.1752]
[1765551823947,0.868004,3225.8,3224.6,0.497]
[1765551824145,0.868004,3225.8,3224.3,0.001]
[1765551824146,0.405504,3225.6,3224.3,0.001]
[1765551824348,0.405504,3225.6,3224.7,0.497]
[1765551824551,0.4625,3225.5,3224.7,0.497]
[1765551824854,0.98597929,3225.2,3224.7,0.497]
[1765551825615,0.58047529,3225.2,3224.7,0.973]
[1765551825819,0.58047529,3225.2,3224.8,0.40741529]
[1765551826054,0.58047529,3225.2,3224.7,0.497]
[1765551826258,0.58047529,3225.2,3224.3,0.001]
[1765551826419,0.405504,3225.1,3224.4,0.497]
[1765551826619,0.405504,3225.1,3224.5,0.497]
[1765551827074,0.405504,3225.1,3224.3,0.001]
[1765551827075,0.405504,3224.9,3224.3,0.001]